[Event "Late-Titled-Tuesday-Blitz-June-18-2024"]
[Site "Chess.com"]
[Date "2024.06.18"]
[Round "9"]
[White "aranibos"]
[Black "JEHUBNER"]
[Result "1-0"]
[WhiteElo "2265"]
[BlackElo "2094"]
[TimeControl "180+1"]
[EndTime "15:45:38 PDT"]
[Termination "aranibos won by resignation"]

1. e4 {[%clk 0:03:00.9]} 1... c5 {[%clk 0:02:59.3]} 2. Nf3 {[%clk 0:03:00.5]}
2... Nc6 {[%clk 0:02:53.7]} 3. Bb5 {[%clk 0:02:56.9]} 3... g6 {[%clk 0:02:48.9]}
4. O-O {[%clk 0:02:54]} 4... Bg7 {[%clk 0:02:49.2]} 5. Re1 {[%clk 0:02:53.4]}
5... Nf6 {[%clk 0:02:49.7]} 6. Nc3 {[%clk 0:02:43]} 6... O-O {[%clk 0:02:48.1]}
7. h3 {[%clk 0:02:38.2]} 7... a6 {[%clk 0:02:42.1]} 8. Bf1 {[%clk 0:02:37.6]}
8... d5 {[%clk 0:02:40.9]} 9. e5 {[%clk 0:02:30.4]} 9... Nd7 {[%clk 0:02:38.6]}
10. e6 {[%clk 0:02:12.7]} 10... fxe6 {[%clk 0:02:37.9]} 11. Ng5 {[%clk
0:02:11.3]} 11... Nb6 {[%clk 0:02:25.2]} 12. Nxe6 {[%clk 0:02:07.9]} 12... Bxe6
{[%clk 0:02:25.8]} 13. Rxe6 {[%clk 0:02:07.7]} 13... Nd4 {[%clk 0:02:26.3]} 14.
Re1 {[%clk 0:02:06.1]} 14... e5 {[%clk 0:02:23.8]} 15. d3 {[%clk 0:01:57.8]}
15... Qf6 {[%clk 0:02:11.8]} 16. Be3 {[%clk 0:01:54.5]} 16... Nd7 {[%clk
0:01:50.9]} 17. Nxd5 {[%clk 0:01:51]} 17... Qd6 {[%clk 0:01:45.9]} 18. Nc3
{[%clk 0:01:49.5]} 18... Nf6 {[%clk 0:01:31]} 19. Ne4 {[%clk 0:01:42.4]} 19...
Nxe4 {[%clk 0:01:03]} 20. dxe4 {[%clk 0:01:40.1]} 20... Qb6 {[%clk 0:00:46.2]}
21. c3 {[%clk 0:01:32.1]} 21... Ne6 {[%clk 0:00:41.7]} 22. Bc4 {[%clk
0:01:29.1]} 22... Kh8 {[%clk 0:00:40.3]} 23. b4 {[%clk 0:01:25.2]} 23... Qc6
{[%clk 0:00:24.6]} 24. Bxe6 {[%clk 0:01:20.3]} 24... Qxe6 {[%clk 0:00:25.5]} 25.
Bxc5 {[%clk 0:01:19.9]} 25... Rf7 {[%clk 0:00:23.1]} 26. Qd6 {[%clk 0:00:57.9]}
26... Qxd6 {[%clk 0:00:23.5]} 27. Bxd6 {[%clk 0:00:57.3]} 27... Rd8 {[%clk
0:00:23.9]} 28. Bc5 {[%clk 0:00:53.1]} 28... Rd2 {[%clk 0:00:24.1]} 29. a4
{[%clk 0:00:47.7]} 29... h6 {[%clk 0:00:23.4]} 30. Be3 {[%clk 0:00:38]} 30...
Rc2 {[%clk 0:00:23.1]} 31. Rac1 {[%clk 0:00:37.7]} 31... Ra2 {[%clk 0:00:23.6]}
32. a5 {[%clk 0:00:37.8]} 32... Rc7 {[%clk 0:00:21.6]} 33. Red1 {[%clk
0:00:31.1]} 33... Ra3 {[%clk 0:00:20.6]} 34. Bc5 {[%clk 0:00:30.8]} 34... Kh7
{[%clk 0:00:18]} 35. Rd8 {[%clk 0:00:30.7]} 35... Ra2 {[%clk 0:00:17.4]} 36. f3
{[%clk 0:00:30.4]} 36... Rb2 {[%clk 0:00:15.3]} 37. Rcd1 {[%clk 0:00:30.4]}
37... Rc2 {[%clk 0:00:15.3]} 38. R1d7 {[%clk 0:00:28.3]} 38... Rxd7 {[%clk
0:00:11.5]} 39. Rxd7 {[%clk 0:00:28.7]} 39... Kg8 {[%clk 0:00:10.8]} 40. Rxb7
{[%clk 0:00:26.5]} 40... Rxc3 {[%clk 0:00:10.8]} 41. Rb6 {[%clk 0:00:26.9]}
41... Bf6 {[%clk 0:00:08.3]} 42. Rxf6 {[%clk 0:00:26.3]} 1-0

[Event "Late-Titled-Tuesday-Blitz-June-18-2024"]
[Site "Chess.com"]
[Date "2024.06.18"]
[Round "9"]
[White "cakeuvdort"]
[Black "Chessdemon2019"]
[Result "0-1"]
[WhiteElo "2304"]
[BlackElo "2388"]
[TimeControl "180+1"]
[EndTime "15:45:39 PDT"]
[Termination "Chessdemon2019 won on time"]

1. Nf3 {[%clk 0:03:00.9]} 1... g6 {[%clk 0:02:54]} 2. e3 {[%clk 0:02:59.6]} 2...
Bg7 {[%clk 0:02:53.8]} 3. d4 {[%clk 0:02:57.8]} 3... h5 {[%clk 0:02:50.2]} 4. b3
{[%clk 0:02:55.7]} 4... Nh6 {[%clk 0:02:49.3]} 5. Bb2 {[%clk 0:02:55.2]} 5...
O-O {[%clk 0:02:48.4]} 6. Bd3 {[%clk 0:02:52.5]} 6... d6 {[%clk 0:02:48]} 7. O-O
{[%clk 0:02:50]} 7... c5 {[%clk 0:01:16.2]} 8. Nbd2 {[%clk 0:02:40.3]} 8... Nc6
{[%clk 0:01:10.2]} 9. c4 {[%clk 0:02:37.8]} 9... Bf5 {[%clk 0:01:02.3]} 10. Qc2
{[%clk 0:02:31.9]} 10... Nb4 {[%clk 0:01:00.5]} 11. Bxf5 {[%clk 0:02:29.4]}
11... Nxc2 {[%clk 0:01:00.5]} 12. Bxc2 {[%clk 0:02:29.4]} 12... a6 {[%clk
0:00:58.2]} 13. a4 {[%clk 0:02:29.2]} 13... Qd7 {[%clk 0:00:55.7]} 14. a5 {[%clk
0:02:27.2]} 14... d5 {[%clk 0:00:49.2]} 15. Rfd1 {[%clk 0:02:22.4]} 15... cxd4
{[%clk 0:00:48.4]} 16. Bxd4 {[%clk 0:02:13.5]} 16... dxc4 {[%clk 0:00:34.3]} 17.
Nxc4 {[%clk 0:02:13.4]} 17... Bxd4 {[%clk 0:00:29.1]} 18. Rxd4 {[%clk
0:02:02.4]} 18... Qc7 {[%clk 0:00:27.2]} 19. Rf4 {[%clk 0:00:48.9]} 19... Rad8
{[%clk 0:00:19.6]} 20. h3 {[%clk 0:00:45.8]} 20... Rd5 {[%clk 0:00:19.3]} 21.
Be4 {[%clk 0:00:39.7]} 21... Rb5 {[%clk 0:00:18.6]} 22. Nd4 {[%clk 0:00:35.6]}
22... Rb4 {[%clk 0:00:15.1]} 23. Rf3 {[%clk 0:00:10.9]} 23... e5 {[%clk
0:00:12.9]} 24. Ne2 {[%clk 0:00:07.1]} 24... Rxb3 {[%clk 0:00:13.1]} 25. Nb6
{[%clk 0:00:07]} 25... Rb2 {[%clk 0:00:12.8]} 26. Nd5 {[%clk 0:00:06.6]} 26...
Qd6 {[%clk 0:00:09.3]} 27. Nf6+ {[%clk 0:00:05]} 27... Kg7 {[%clk 0:00:09.5]}
28. Ng3 {[%clk 0:00:05.4]} 28... h4 {[%clk 0:00:06.5]} 29. Nf1 {[%clk
0:00:02.5]} 29... Ng8 {[%clk 0:00:05.9]} 30. Nxg8 {[%clk 0:00:01.7]} 30... Kxg8
{[%clk 0:00:06.1]} 0-1

[Event "Late-Titled-Tuesday-Blitz-June-18-2024"]
[Site "Chess.com"]
[Date "2024.06.18"]
[Round "9"]
[White "Jahonas"]
[Black "Slovineanu"]
[Result "0-1"]
[WhiteElo "2405"]
[BlackElo "2557"]
[TimeControl "180+1"]
[EndTime "15:45:42 PDT"]
[Termination "Slovineanu won by resignation"]

1. d4 {[%clk 0:03:00.9]} 1... Nf6 {[%clk 0:02:58.5]} 2. c4 {[%clk 0:02:59.5]}
2... e6 {[%clk 0:02:58.7]} 3. Nf3 {[%clk 0:02:59.3]} 3... d5 {[%clk 0:02:59.2]}
4. cxd5 {[%clk 0:02:57.8]} 4... exd5 {[%clk 0:02:58.1]} 5. Nc3 {[%clk
0:02:57.5]} 5... c6 {[%clk 0:02:56.2]} 6. Bg5 {[%clk 0:02:57.1]} 6... Bf5 {[%clk
0:02:53.9]} 7. e3 {[%clk 0:02:56.4]} 7... Nbd7 {[%clk 0:02:52.8]} 8. Bd3 {[%clk
0:02:56.4]} 8... Bxd3 {[%clk 0:02:52.1]} 9. Qxd3 {[%clk 0:02:55.7]} 9... Bd6
{[%clk 0:02:51.9]} 10. O-O {[%clk 0:02:54.6]} 10... O-O {[%clk 0:02:51.8]} 11.
Rfe1 {[%clk 0:02:51.5]} 11... Re8 {[%clk 0:02:51.3]} 12. e4 {[%clk 0:02:49.5]}
12... dxe4 {[%clk 0:02:50.2]} 13. Nxe4 {[%clk 0:02:49.1]} 13... Be7 {[%clk
0:02:50.4]} 14. Bf4 {[%clk 0:02:39.8]} 14... Nd5 {[%clk 0:02:43.9]} 15. Bg3
{[%clk 0:02:30]} 15... N7f6 {[%clk 0:02:40.2]} 16. Ne5 {[%clk 0:02:14.2]} 16...
h6 {[%clk 0:02:36.3]} 17. Nc3 {[%clk 0:02:02.5]} 17... Bd6 {[%clk 0:02:04.7]}
18. Qf5 {[%clk 0:01:52.5]} 18... Bb4 {[%clk 0:01:47.4]} 19. Nxd5 {[%clk
0:01:38.2]} 19... Qxd5 {[%clk 0:01:42.3]} 20. Red1 {[%clk 0:01:29.2]} 20... Rad8
{[%clk 0:01:37.3]} 21. a3 {[%clk 0:01:23.4]} 21... Bd6 {[%clk 0:01:36.4]} 22. h3
{[%clk 0:01:19.2]} 22... Ne4 {[%clk 0:01:34.1]} 23. Qf3 {[%clk 0:01:13.2]} 23...
Nxg3 {[%clk 0:01:31.8]} 24. Qxd5 {[%clk 0:00:41.9]} 24... Ne2+ {[%clk
0:01:31.1]} 25. Kf1 {[%clk 0:00:41.3]} 25... cxd5 {[%clk 0:01:31.5]} 26. Kxe2
{[%clk 0:00:40.1]} 26... f6 {[%clk 0:01:31.8]} 27. f4 {[%clk 0:00:39]} 27...
fxe5 {[%clk 0:01:30.9]} 28. fxe5 {[%clk 0:00:39.3]} 28... Bc7 {[%clk 0:01:29.5]}
29. Rac1 {[%clk 0:00:38.1]} 29... Bb6 {[%clk 0:01:29.9]} 30. Kd3 {[%clk
0:00:35.9]} 30... Rc8 {[%clk 0:01:29.6]} 31. b4 {[%clk 0:00:35.2]} 31... Kf7
{[%clk 0:01:21.6]} 32. a4 {[%clk 0:00:34.1]} 32... a6 {[%clk 0:01:21.9]} 33. a5
{[%clk 0:00:32.8]} 33... Ba7 {[%clk 0:01:21.9]} 34. Rf1+ {[%clk 0:00:32.8]}
34... Ke6 {[%clk 0:01:21.1]} 35. Rb1 {[%clk 0:00:32.9]} 35... Rc4 {[%clk
0:01:20.1]} 36. Rf4 {[%clk 0:00:32.8]} 36... Rec8 {[%clk 0:00:41.5]} 37. b5
{[%clk 0:00:30.7]} 37... Rc3+ {[%clk 0:00:38.9]} 38. Ke2 {[%clk 0:00:30.3]}
38... Rc2+ {[%clk 0:00:38.2]} 39. Kf3 {[%clk 0:00:29.1]} 39... R8c3+ {[%clk
0:00:35.3]} 40. Kg4 {[%clk 0:00:10.8]} 40... Rxg2+ {[%clk 0:00:35.8]} 41. Kh5
{[%clk 0:00:07.5]} 41... Rxh3+ {[%clk 0:00:33.8]} 42. Rh4 {[%clk 0:00:06.4]}
42... g6+ {[%clk 0:00:32.2]} 43. Kxh6 {[%clk 0:00:05.8]} 43... Rxh4+ {[%clk
0:00:32.6]} 44. Kg7 {[%clk 0:00:06.4]} 44... Bxd4 {[%clk 0:00:32.8]} 45. bxa6
{[%clk 0:00:06.1]} 45... bxa6 {[%clk 0:00:32.7]} 46. Rb2 {[%clk 0:00:05.4]} 0-1

[Event "Late-Titled-Tuesday-Blitz-June-18-2024"]
[Site "Chess.com"]
[Date "2024.06.18"]
[Round "9"]
[White "JG1me"]
[Black "KaydenTroffChess"]
[Result "0-1"]
[WhiteElo "2571"]
[BlackElo "2809"]
[TimeControl "180+1"]
[EndTime "15:45:44 PDT"]
[Termination "KaydenTroffChess won by resignation"]

1. e4 {[%clk 0:03:00.9]} 1... c5 {[%clk 0:02:59.7]} 2. Nf3 {[%clk 0:03:00.9]}
2... g6 {[%clk 0:03:00.1]} 3. d4 {[%clk 0:02:55.1]} 3... cxd4 {[%clk 0:03:01]}
4. Nxd4 {[%clk 0:02:55.7]} 4... Bg7 {[%clk 0:03:01.1]} 5. Be3 {[%clk 0:02:52.7]}
5... Nf6 {[%clk 0:03:00.1]} 6. Nc3 {[%clk 0:02:52.7]} 6... Nc6 {[%clk
0:03:00.1]} 7. Be2 {[%clk 0:02:51.9]} 7... O-O {[%clk 0:03:00]} 8. O-O {[%clk
0:02:52]} 8... d5 {[%clk 0:03:00.4]} 9. exd5 {[%clk 0:02:38.9]} 9... Nxd5 {[%clk
0:03:01.3]} 10. Nxc6 {[%clk 0:02:39.5]} 10... bxc6 {[%clk 0:02:57.4]} 11. Bd4
{[%clk 0:02:31.2]} 11... Nxc3 {[%clk 0:02:49.8]} 12. bxc3 {[%clk 0:02:23.7]}
12... Be6 {[%clk 0:02:44.3]} 13. Bf3 {[%clk 0:02:20.9]} 13... Bd5 {[%clk
0:02:44.3]} 14. Re1 {[%clk 0:02:16.9]} 14... e6 {[%clk 0:02:17.6]} 15. Qd3
{[%clk 0:02:07.2]} 15... Bxf3 {[%clk 0:02:05.9]} 16. Bxg7 {[%clk 0:01:56.8]}
16... Qxd3 {[%clk 0:02:00.1]} 17. cxd3 {[%clk 0:01:57.7]} 17... Kxg7 {[%clk
0:01:58.9]} 18. gxf3 {[%clk 0:01:57.9]} 18... Rfd8 {[%clk 0:01:58.6]} 19. d4
{[%clk 0:01:58.4]} 19... Rd5 {[%clk 0:01:57.9]} 20. Rab1 {[%clk 0:01:52.7]}
20... Ra5 {[%clk 0:01:57.5]} 21. Rb7 {[%clk 0:01:42.2]} 21... Rxa2 {[%clk
0:01:52.7]} 22. Rxe6 {[%clk 0:01:40.4]} 22... c5 {[%clk 0:01:44.9]} 23. Ree7
{[%clk 0:01:37.7]} 23... Rf8 {[%clk 0:01:43.1]} 24. Rxa7 {[%clk 0:01:35.6]}
24... Rc2 {[%clk 0:01:43]} 25. dxc5 {[%clk 0:01:34.6]} 25... Rxc3 {[%clk
0:01:42.9]} 26. Rec7 {[%clk 0:01:14.9]} 26... Rxf3 {[%clk 0:01:42.1]} 27. Kg2
{[%clk 0:01:15.4]} 27... Rf6 {[%clk 0:01:40.1]} 28. c6 {[%clk 0:01:10.7]} 28...
Re8 {[%clk 0:01:40]} 29. Ra2 {[%clk 0:00:59.1]} 29... Re5 {[%clk 0:01:29.8]} 30.
Rc2 {[%clk 0:00:57]} 30... Rg5+ {[%clk 0:01:27.7]} 31. Kf1 {[%clk 0:00:57.3]}
31... Rff5 {[%clk 0:01:27.6]} 32. Rc8 {[%clk 0:00:56.4]} 32... Rc5 {[%clk
0:01:27.4]} 33. Rxc5 {[%clk 0:00:53.9]} 33... Rxc5 {[%clk 0:01:26.8]} 34. Kg2
{[%clk 0:00:50.7]} 34... h5 {[%clk 0:01:26]} 35. Kf3 {[%clk 0:00:48.1]} 35...
Rc2 {[%clk 0:01:25.1]} 36. Kg3 {[%clk 0:00:46.1]} 36... Kf6 {[%clk 0:01:22.9]}
37. h4 {[%clk 0:00:44.8]} 37... Kf5 {[%clk 0:01:18.5]} 38. f3 {[%clk 0:00:34.7]}
38... f6 {[%clk 0:01:15.1]} 39. c7 {[%clk 0:00:35.1]} 39... Rc3 {[%clk
0:01:07.9]} 40. Kg2 {[%clk 0:00:26.7]} 40... Rc4 {[%clk 0:00:59.3]} 41. Kg3
{[%clk 0:00:26.9]} 41... Rc2 {[%clk 0:00:57.8]} 42. Kh3 {[%clk 0:00:20.7]} 42...
Rc1 {[%clk 0:00:44]} 43. Kg3 {[%clk 0:00:18.4]} 43... Ke6 {[%clk 0:00:40.6]} 44.
Re8+ {[%clk 0:00:15.9]} 44... Kd7 {[%clk 0:00:40.6]} 45. Rf8 {[%clk 0:00:16.3]}
45... Kxc7 {[%clk 0:00:36.7]} 46. Rxf6 {[%clk 0:00:15.9]} 46... Kd7 {[%clk
0:00:37.2]} 47. Rxg6 {[%clk 0:00:15.8]} 47... Rg1+ {[%clk 0:00:37.1]} 48. Kf4
{[%clk 0:00:13.6]} 48... Rxg6 {[%clk 0:00:38]} 49. Kf5 {[%clk 0:00:14.3]} 49...
Rg3 {[%clk 0:00:36.2]} 50. f4 {[%clk 0:00:14.4]} 50... Ke7 {[%clk 0:00:36.6]}
51. Ke5 {[%clk 0:00:14.5]} 51... Kf7 {[%clk 0:00:36.5]} 52. Kf5 {[%clk 0:00:15]}
52... Rg4 {[%clk 0:00:36.6]} 53. Ke5 {[%clk 0:00:14.9]} 53... Rxh4 {[%clk
0:00:37]} 54. f5 {[%clk 0:00:15.8]} 0-1

[Event "Late-Titled-Tuesday-Blitz-June-18-2024"]
[Site "Chess.com"]
[Date "2024.06.18"]
[Round "9"]
[White "MathiasWomacka"]
[Black "Dhaydon19"]
[Result "0-1"]
[WhiteElo "2530"]
[BlackElo "2660"]
[TimeControl "180+1"]
[EndTime "15:45:44 PDT"]
[Termination "Dhaydon19 won on time"]

1. e4 {[%clk 0:03:00.9]} 1... Nf6 {[%clk 0:02:58]} 2. e5 {[%clk 0:02:59.7]} 2...
Nd5 {[%clk 0:02:57.8]} 3. d4 {[%clk 0:02:59.4]} 3... d6 {[%clk 0:02:58]} 4. Nf3
{[%clk 0:02:59.3]} 4... Bg4 {[%clk 0:02:56.6]} 5. Be2 {[%clk 0:02:58.3]} 5... e6
{[%clk 0:02:56.3]} 6. O-O {[%clk 0:02:56.2]} 6... Be7 {[%clk 0:02:56]} 7. h3
{[%clk 0:02:55.8]} 7... Bh5 {[%clk 0:02:55.2]} 8. c4 {[%clk 0:02:52.9]} 8... Nb6
{[%clk 0:02:54.7]} 9. Nc3 {[%clk 0:02:53.4]} 9... O-O {[%clk 0:02:51.7]} 10. Be3
{[%clk 0:02:52.9]} 10... Nc6 {[%clk 0:02:50.5]} 11. exd6 {[%clk 0:02:52.3]}
11... cxd6 {[%clk 0:02:48.4]} 12. d5 {[%clk 0:02:52.5]} 12... Na5 {[%clk
0:02:36.6]} 13. b3 {[%clk 0:02:35]} 13... Bf6 {[%clk 0:02:32.6]} 14. Rc1 {[%clk
0:02:33.8]} 14... Rc8 {[%clk 0:02:11.6]} 15. dxe6 {[%clk 0:02:02.8]} 15... fxe6
{[%clk 0:02:08.3]} 16. Nb5 {[%clk 0:02:03.3]} 16... d5 {[%clk 0:02:01]} 17. Nxa7
{[%clk 0:02:01.3]} 17... Ra8 {[%clk 0:02:00.8]} 18. Nb5 {[%clk 0:01:55.4]} 18...
dxc4 {[%clk 0:01:50.9]} 19. Qxd8 {[%clk 0:01:52.7]} 19... Bxd8 {[%clk 0:01:50]}
20. bxc4 {[%clk 0:01:45.3]} 20... Bxf3 {[%clk 0:01:45.8]} 21. Bxf3 {[%clk
0:01:42.6]} 21... Naxc4 {[%clk 0:01:44.9]} 22. Bxb7 {[%clk 0:01:37.9]} 22...
Rxa2 {[%clk 0:01:41.1]} 23. Bc5 {[%clk 0:01:37.3]} 23... Rf5 {[%clk 0:01:37.8]}
24. Nc3 {[%clk 0:01:27.5]} 24... Ra7 {[%clk 0:01:32]} 25. Bxb6 {[%clk
0:01:19.2]} 25... Bxb6 {[%clk 0:01:29.5]} 26. Be4 {[%clk 0:01:18.2]} 26... Re5
{[%clk 0:01:20.5]} 27. Bd3 {[%clk 0:01:12.1]} 27... Nb2 {[%clk 0:01:09.6]} 28.
Bb1 {[%clk 0:01:05.2]} 28... Rf7 {[%clk 0:01:04.8]} 29. Rc2 {[%clk 0:00:53.7]}
29... Nc4 {[%clk 0:01:00.3]} 30. Ba2 {[%clk 0:00:52.2]} 30... Ne3 {[%clk
0:00:50.3]} 31. Re2 {[%clk 0:00:25]} 31... Nxf1 {[%clk 0:00:48.4]} 32. Rxe5
{[%clk 0:00:24.3]} 32... Bxf2+ {[%clk 0:00:45.4]} 33. Kh1 {[%clk 0:00:15.4]}
33... Ng3+ {[%clk 0:00:31.8]} 34. Kh2 {[%clk 0:00:14]} 34... Nf1+ {[%clk
0:00:32.4]} 35. Kh1 {[%clk 0:00:13.7]} 35... g6 {[%clk 0:00:30.3]} 36. Rxe6
{[%clk 0:00:13]} 36... Kg7 {[%clk 0:00:28.6]} 37. Ne4 {[%clk 0:00:11.8]} 37...
Ng3+ {[%clk 0:00:25.6]} 38. Nxg3 {[%clk 0:00:10.8]} 38... Bxg3 {[%clk
0:00:26.3]} 39. Kg1 {[%clk 0:00:11.3]} 39... Ra7 {[%clk 0:00:25.6]} 40. Re2
{[%clk 0:00:08.9]} 40... Rc7 {[%clk 0:00:25.4]} 0-1

[Event "Late-Titled-Tuesday-Blitz-June-18-2024"]
[Site "Chess.com"]
[Date "2024.06.18"]
[Round "9"]
[White "EliteChess0967"]
[Black "tortorchess"]
[Result "1-0"]
[WhiteElo "2390"]
[BlackElo "2219"]
[TimeControl "180+1"]
[EndTime "15:45:45 PDT"]
[Termination "EliteChess0967 won on time"]

1. d4 {[%clk 0:02:59.3]} 1... d5 {[%clk 0:02:59.8]} 2. Nf3 {[%clk 0:02:59.4]}
2... Nf6 {[%clk 0:02:59.6]} 3. g3 {[%clk 0:02:59.7]} 3... e6 {[%clk 0:02:59.5]}
4. Bg2 {[%clk 0:03:00.4]} 4... c5 {[%clk 0:03:00.1]} 5. O-O {[%clk 0:03:00.3]}
5... Nc6 {[%clk 0:03:00.7]} 6. c4 {[%clk 0:02:59.8]} 6... Be7 {[%clk 0:02:57.8]}
7. cxd5 {[%clk 0:02:59.2]} 7... exd5 {[%clk 0:02:58.1]} 8. Nc3 {[%clk
0:02:55.2]} 8... O-O {[%clk 0:02:57.7]} 9. dxc5 {[%clk 0:02:53.9]} 9... Bxc5
{[%clk 0:02:57.6]} 10. Bg5 {[%clk 0:02:54.2]} 10... d4 {[%clk 0:02:45.9]} 11.
Bxf6 {[%clk 0:02:31.9]} 11... Qxf6 {[%clk 0:02:42.3]} 12. Ne4 {[%clk 0:02:31.9]}
12... Qe7 {[%clk 0:02:42.3]} 13. Nxc5 {[%clk 0:02:32.2]} 13... Qxc5 {[%clk
0:02:43.2]} 14. Qd2 {[%clk 0:02:31.8]} 14... Be6 {[%clk 0:02:40.8]} 15. Rfd1
{[%clk 0:02:30.2]} 15... Rfd8 {[%clk 0:02:40.2]} 16. Rac1 {[%clk 0:02:27.7]}
16... Qb6 {[%clk 0:02:39.8]} 17. b3 {[%clk 0:02:17.2]} 17... h6 {[%clk
0:02:39.4]} 18. Qf4 {[%clk 0:02:11.5]} 18... Rac8 {[%clk 0:02:21.4]} 19. Ne5
{[%clk 0:02:03.7]} 19... a6 {[%clk 0:01:19.7]} 20. Nxc6 {[%clk 0:01:55.9]} 20...
bxc6 {[%clk 0:01:19.1]} 21. Rc2 {[%clk 0:01:42.2]} 21... c5 {[%clk 0:01:19.2]}
22. Rdc1 {[%clk 0:01:42.1]} 22... a5 {[%clk 0:01:16.7]} 23. Qe5 {[%clk
0:01:36.4]} 23... f6 {[%clk 0:01:03.3]} 24. Qh5 {[%clk 0:01:22.8]} 24... Bf7
{[%clk 0:01:02.6]} 25. Qf5 {[%clk 0:01:22.1]} 25... Be6 {[%clk 0:00:58.2]} 26.
Qf4 {[%clk 0:01:09.8]} 26... Rd7 {[%clk 0:00:48.1]} 27. Be4 {[%clk 0:01:02.1]}
27... Rdc7 {[%clk 0:00:46.7]} 28. Bd3 {[%clk 0:01:00]} 28... Qb7 {[%clk
0:00:39.7]} 29. Bc4 {[%clk 0:00:57.2]} 29... Bxc4 {[%clk 0:00:37.8]} 30. Rxc4
{[%clk 0:00:58.1]} 30... Qd5 {[%clk 0:00:37.4]} 31. Qd2 {[%clk 0:00:57.2]} 31...
Kf7 {[%clk 0:00:33.8]} 32. Qxa5 {[%clk 0:00:52.6]} 32... Qe5 {[%clk 0:00:27.5]}
33. Qd2 {[%clk 0:00:50.7]} 33... Re8 {[%clk 0:00:25.8]} 34. R1c2 {[%clk
0:00:50.2]} 34... g5 {[%clk 0:00:19.5]} 35. b4 {[%clk 0:00:49.4]} 35... d3
{[%clk 0:00:16.8]} 36. Qxd3 {[%clk 0:00:44.6]} 36... Rd7 {[%clk 0:00:16.6]} 37.
Qxd7+ {[%clk 0:00:43.8]} 37... Kg6 {[%clk 0:00:16.6]} 38. Rxc5 {[%clk
0:00:42.4]} 38... Qa1+ {[%clk 0:00:11.8]} 39. Kg2 {[%clk 0:00:42.2]} 39... Qb1
{[%clk 0:00:08]} 40. Qd3+ {[%clk 0:00:41.7]} 40... Kg7 {[%clk 0:00:04.6]} 41.
Rc7+ {[%clk 0:00:41.6]} 41... Kf8 {[%clk 0:00:03.8]} 42. Rc8 {[%clk 0:00:40.3]}
42... Qxb4 {[%clk 0:00:01.4]} 43. Rxe8+ {[%clk 0:00:39.9]} 43... Kxe8 {[%clk
0:00:02.2]} 44. Rc8+ {[%clk 0:00:39]} 44... Ke7 {[%clk 0:00:02.4]} 45. Rc7+
{[%clk 0:00:38.4]} 45... Ke6 {[%clk 0:00:03.3]} 46. Rc6+ {[%clk 0:00:36.7]}
46... Ke7 {[%clk 0:00:03.3]} 47. Qd5 {[%clk 0:00:35.2]} 1-0

[Event "Late-Titled-Tuesday-Blitz-June-18-2024"]
[Site "Chess.com"]
[Date "2024.06.18"]
[Round "9"]
[White "ameetghasi100"]
[Black "rasmussvane"]
[Result "0-1"]
[WhiteElo "2746"]
[BlackElo "2976"]
[TimeControl "180+1"]
[EndTime "15:45:49 PDT"]
[Termination "rasmussvane won on time"]

1. b3 {[%clk 0:03:00.8]} 1... d5 {[%clk 0:02:58.6]} 2. Bb2 {[%clk 0:03:00.6]}
2... Nf6 {[%clk 0:02:58.9]} 3. d3 {[%clk 0:02:56]} 3... Nc6 {[%clk 0:02:51.4]}
4. Nd2 {[%clk 0:02:54.1]} 4... e5 {[%clk 0:02:50.7]} 5. a3 {[%clk 0:02:51.2]}
5... a5 {[%clk 0:02:47.6]} 6. e3 {[%clk 0:02:51.1]} 6... Bd6 {[%clk 0:02:42.9]}
7. h3 {[%clk 0:02:50.9]} 7... Be6 {[%clk 0:02:37.5]} 8. Ne2 {[%clk 0:02:51]}
8... Ne7 {[%clk 0:02:36.5]} 9. g3 {[%clk 0:02:50.5]} 9... Ng6 {[%clk 0:02:36.3]}
10. Bg2 {[%clk 0:02:51]} 10... c6 {[%clk 0:02:36.7]} 11. c4 {[%clk 0:02:50.9]}
11... Qd7 {[%clk 0:02:34.7]} 12. Qc2 {[%clk 0:02:50.8]} 12... O-O {[%clk
0:02:33.6]} 13. Nf3 {[%clk 0:02:48.8]} 13... h6 {[%clk 0:02:33]} 14. d4 {[%clk
0:02:41.8]} 14... e4 {[%clk 0:02:26.9]} 15. Ne5 {[%clk 0:02:41.5]} 15... Qe7
{[%clk 0:02:22.9]} 16. Nf4 {[%clk 0:02:38.9]} 16... Nxf4 {[%clk 0:01:53.1]} 17.
gxf4 {[%clk 0:02:36.8]} 17... Bf5 {[%clk 0:01:50.5]} 18. Bf1 {[%clk 0:02:20.5]}
18... Rfc8 {[%clk 0:01:43.3]} 19. c5 {[%clk 0:01:58.5]} 19... Bc7 {[%clk
0:01:39.7]} 20. Be2 {[%clk 0:01:39.2]} 20... Kh7 {[%clk 0:01:38.7]} 21. Kd2
{[%clk 0:01:30.2]} 21... Rg8 {[%clk 0:01:37.6]} 22. h4 {[%clk 0:01:28.6]} 22...
h5 {[%clk 0:01:34.9]} 23. Rag1 {[%clk 0:01:15.2]} 23... g6 {[%clk 0:01:34]} 24.
Qd1 {[%clk 0:01:00.6]} 24... Qe6 {[%clk 0:01:30.1]} 25. Rg5 {[%clk 0:00:54.9]}
25... Rab8 {[%clk 0:00:51.5]} 26. Rhg1 {[%clk 0:00:33.4]} 26... Bxe5 {[%clk
0:00:51.1]} 27. dxe5 {[%clk 0:00:33.3]} 27... Ng4 {[%clk 0:00:45.7]} 28. Bxg4
{[%clk 0:00:26.7]} 28... Bxg4 {[%clk 0:00:45.9]} 29. R1xg4 {[%clk 0:00:13.1]}
29... hxg4 {[%clk 0:00:46.2]} 30. Bd4 {[%clk 0:00:13.5]} 30... b6 {[%clk
0:00:31.9]} 31. cxb6 {[%clk 0:00:13.6]} 31... c5 {[%clk 0:00:32.3]} 32. Bxc5
{[%clk 0:00:13.7]} 32... Rgc8 {[%clk 0:00:28.5]} 33. b4 {[%clk 0:00:13.7]} 33...
axb4 {[%clk 0:00:28.2]} 34. axb4 {[%clk 0:00:14.3]} 34... Rxb6 {[%clk
0:00:28.9]} 35. Bxb6 {[%clk 0:00:10.3]} 35... Qxb6 {[%clk 0:00:28.1]} 36. Qb3
{[%clk 0:00:09.5]} 36... Qb5 {[%clk 0:00:24.2]} 37. h5 {[%clk 0:00:03.5]} 37...
Qf1 {[%clk 0:00:23.9]} 38. hxg6+ {[%clk 0:00:03.8]} 38... fxg6 {[%clk
0:00:24.7]} 39. Qxd5 {[%clk 0:00:01.7]} 39... Qc1+ {[%clk 0:00:23.5]} 40. Ke2
{[%clk 0:00:01.7]} 40... Rc2+ {[%clk 0:00:24.4]} 0-1